bitfinex/quotes_SOLUSD_20250118
["timestamp","ask_amount","ask_price","bid_price","bid_amount"]
[1737219720318,30.83895814,245.62,245.52,30.83895814]
[1737219720514,30.83895814,245.6,245.53,0.61089866]
[1737219720726,30.83895814,245.58,245.46,30.83895814]
[1737219720940,30.83895814,245.56,245.46,30.83895814]
[1737219721243,30.83895814,245.53,245.42,30.83895814]
[1737219721425,30.83895814,245.57,245.43,0.61106148]
[1737219721740,30.83895814,245.59,245.56,20.0]
[1737219721937,30.83895814,245.6,245.56,20.0]
[1737219722137,30.83895814,245.64,245.56,20.0]
[1737219722525,30.83895814,245.64,245.58,20.0]
[1737219722731,30.83895814,245.76,245.6,20.0]
[1737219722732,30.83895814,245.68,245.6,20.0]
[1737219722923,30.83895814,245.68,245.62,20.0]
[1737219723123,30.83895814,245.64,245.54,30.83895814]
[1737219723322,30.83895814,245.64,245.56,30.83895814]
[1737219723552,30.83895814,245.68,245.58,30.83895814]
[1737219723847,30.83895814,245.68,245.57,0.61076107]
[1737219723848,41.00655814,245.88,245.64,30.83895814]
[1737219724017,30.83895814,245.74,245.67,20.0]
[1737219724223,30.83895814,245.74,245.69,20.0]
[1737219724436,30.83895814,245.76,245.69,20.0]
[1737219724636,30.83895814,245.82,245.73,50.83895814]
[1737219724843,30.83895814,245.85,245.78,20.0]
[1737219725150,30.83895814,245.83,245.78,20.0]
[1737219725443,30.83895814,245.87,245.8,20.0]
[1737219725945,30.83895814,245.87,245.78,0.61018647]
[1737219726138,0.063,246.02,245.86,30.83895814]
[1737219726337,30.83895814,245.91,245.81,30.83895814]
[1737219726638,30.83895814,245.87,245.79,30.83895814]
[1737219726838,30.83895814,245.89,245.81,30.83895814]
[1737219727152,30.83895814,246.0,245.81,30.83895814]
[1737219727323,30.83895814,245.91,245.84,20.0]
[1737219728027,30.83895814,245.9,245.84,20.0]
[1737219728437,30.83895814,245.85,245.73,30.83895814]
[1737219728621,30.83895814,245.88,245.82,20.0]
[1737219729033,0.063,246.02,245.89,20.0]
[1737219729034,30.83895814,245.98,245.89,20.0]
[1737219729230,0.063,246.02,245.94,20.0]
[1737219729536,0.063,246.02,245.98,20.0]
[1737219729734,0.063,246.02,245.8,0.60979165]
[1737219729735,30.90195814,246.02,245.8,0.60979165]
[1737219730126,30.90195814,246.02,245.9,30.83895814]
[1737219730127,30.83895814,246.01,245.9,30.83895814]
[1737219730338,30.83895814,246.01,245.92,30.83895814]
[1737219730752,30.83895814,246.01,245.9,30.83895814]
[1737219731051,30.83895814,245.94,245.84,30.83895814]
[1737219731351,30.83895814,246.0,245.89,30.83895814]
[1737219731547,30.83895814,245.9,245.81,30.83895814]
[1737219731756,30.83895814,245.92,245.81,30.83895814]
[1737219731939,30.83895814,245.98,245.88,30.83895814]
[1737219732133,30.90195814,246.02,245.95,20.0]
[1737219732332,30.90195814,246.02,245.93,0.60983526]
[1737219732528,0.063,246.02,246.01,23.776884]
[1737219732751,0.063,246.17,246.03,20.0]
[1737219732930,0.063,246.17,246.09,30.83895814]
[1737219733243,0.063,246.17,246.07,30.83895814]
[1737219733450,0.063,246.17,246.03,30.83895814]
[1737219733451,30.83895814,246.13,246.03,30.83895814]
[1737219733847,0.063,246.17,246.06,50.83895814]
[1737219734046,30.83895814,246.13,246.04,30.83895814]
[1737219734350,30.83895814,246.15,246.05,50.83895814]
[1737219734753,30.83895814,246.13,246.06,20.0]
[1737219734959,30.83895814,246.08,245.97,30.83895814]
[1737219735251,30.83895814,246.1,245.99,30.83895814]
[1737219735453,0.063,246.17,245.9,12.7575]
[1737219735454,0.063,246.17,246.08,30.83895814]
[1737219735630,30.90195814,246.17,246.06,30.83895814]
[1737219735826,30.90195814,246.17,246.08,30.83895814]
[1737219736026,30.90195814,246.17,246.0,30.83895814]
[1737219736027,0.063,246.17,246.15,20.0]
[1737219736254,0.063,246.17,246.08,30.83895814]
[1737219736453,30.83895814,246.12,246.01,31.44835424]
[1737219736759,30.83895814,246.1,246.0,30.83895814]
[1737219736964,30.83895814,246.08,245.98,30.83895814]
[1737219737257,23.776884,246.07,245.96,30.83895814]
[1737219737648,4.1253,246.17,245.91,0.60978676]
[1737219737649,30.83895814,246.02,245.91,0.60978676]
[1737219737949,30.83895814,246.02,245.91,30.83895814]
[1737219738156,30.83895814,246.1,245.99,30.83895814]
[1737219738462,30.83895814,246.14,246.02,30.83895814]
[1737219738660,0.063,246.17,245.88,30.83895814]
[1737219738661,30.83895814,246.16,246.05,30.83895814]
[1737219738838,0.063,246.17,246.1,20.0]
[1737219739036,30.83895814,246.16,246.07,30.83895814]
[1737219739258,0.063,246.17,246.09,30.83895814]
[1737219739554,0.063,246.17,246.12,20.0]
[1737219739853,0.063,246.17,246.14,20.0]
[1737219740030,0.063,246.17,246.1,30.83895814]
[1737219740233,30.83895814,246.14,246.04,30.83895814]
[1737219740462,30.83895814,246.08,245.98,30.83895814]
[1737219740755,30.83895814,246.04,245.95,30.83895814]
[1737219740949,30.83895814,246.06,245.95,30.83895814]
[1737219741155,30.83895814,246.06,245.97,30.83895814]
[1737219741453,54.61584214,246.11,246.0,30.83895814]
[1737219741838,54.61584214,246.11,246.02,30.83895814]
[1737219742034,54.61584214,246.11,246.05,20.0]
[1737219742238,30.90195814,246.17,246.09,20.0]
[1737219742434,30.90195814,246.17,246.11,20.0]
[1737219742650,30.90195814,246.17,246.08,30.83895814]
[1737219742953,30.90195814,246.17,246.06,30.83895814]
[1737219743333,0.063,246.17,246.12,30.83895814]
[1737219743539,0.063,246.17,246.1,30.83895814]
[1737219743739,0.063,246.17,246.08,30.83895814]
[1737219743935,66.7204,245.91,245.8,3.66950969]
[1737219744142,41.2779,245.91,245.9,20.0]
[1737219744336,39.1481,245.91,245.9,36.254822]
[1737219744532,39.1481,245.91,245.89,0.60979435]
[1737219744737,39.1481,245.91,245.77,0.60989307]
[1737219744944,39.1481,245.91,245.84,30.83895814]
[1737219745155,39.1481,245.91,245.62,30.0]
[1737219745156,69.98705814,245.91,245.85,0.60991734]
[1737219745444,30.83895814,245.96,245.87,30.83895814]
[1737219745649,30.83895814,246.01,245.91,30.83895814]
[1737219745865,30.83895814,245.99,245.92,0.60973371]
[1737219746042,30.83895814,245.95,245.86,30.83895814]
[1737219746238,30.83895814,245.95,245.79,17.86284032]
[1737219746239,30.83895814,245.91,245.87,0.60978815]
[1737219746440,30.83895814,245.91,245.83,0.6098392]
[1737219746661,30.83895814,245.84,245.81,0.60991613]
[1737219746845,30.83895814,245.82,245.7,0.61017864]
[1737219747044,0.60943219,245.81,245.7,0.61017864]
[1737219747243,32.39999721,245.86,245.77,32.39999721]
[1737219747546,0.60943219,246.09,245.78,0.61000354]
[1737219747868,32.39999721,245.87,245.76,32.39999721]
[1737219748046,32.39999721,245.83,245.77,0.61004867]
[1737219748249,32.39999721,245.83,245.75,20.0]
[1737219748553,32.39999721,245.83,245.65,16.266071]
[1737219748554,32.39999721,245.92,245.84,20.0]
[1737219748761,32.39999721,245.86,245.77,32.39999721]
[1737219749064,32.39999721,245.9,245.79,32.39999721]
[1737219749247,32.39999721,245.88,245.8,0.61012353]
[1737219749564,32.39999721,245.84,245.78,0.61015269]
[1737219749768,32.39999721,245.8,245.71,32.39999721]
[1737219749949,1.6370891,245.99,245.58,0.61028778]
[1737219749950,32.39999721,245.75,245.58,0.61028778]
[1737219750262,32.39999721,245.74,245.63,32.39999721]
[1737219750445,32.39999721,245.74,245.64,0.61043454]
[1737219750651,4.67653219,245.88,245.51,2.65280466]
[1737219750652,32.39999721,245.68,245.59,32.39999721]
[1737219750861,32.39999721,245.7,245.61,23.776884]
[1737219751160,32.39999721,245.84,245.68,32.39999721]
[1737219751363,32.39999721,245.89,245.81,20.0]
[1737219751570,32.39999721,245.89,245.83,20.0]
[1737219751747,32.39999721,245.89,245.84,0.61011188]
[1737219752066,32.39999721,245.99,245.88,32.39999721]
[1737219752267,32.39999721,245.99,245.89,0.60986666]
[1737219752447,32.39999721,245.99,245.91,20.0]
[1737219752741,32.39999721,245.99,245.92,0.60986319]
[1737219753159,32.39999721,245.97,245.91,20.6098616]
[1737219753772,32.39999721,245.97,245.91,20.0]
[1737219754451,5.4549,246.02,245.94,32.39999721]
[1737219754769,32.39999721,246.03,245.91,23.776884]
[1737219754770,32.39999721,246.09,246.01,20.0]
[1737219754949,12.573,246.11,245.91,23.776884]
[1737219754950,32.46299721,246.13,246.05,20.0]
[1737219755148,32.46299721,246.13,246.06,0.60948923]
[1737219755466,32.39999721,246.11,246.05,20.0]
[1737219755669,0.60943219,246.1,246.03,0.60948917]
[1737219755870,32.39999721,246.09,246.03,0.60948917]
[1737219756047,32.46299721,246.13,246.05,20.0]
[1737219756245,0.60943219,246.12,246.09,20.0]
[1737219756455,32.46299721,246.13,246.09,20.0]
[1737219756648,32.39999721,246.11,246.02,32.39999721]
[1737219756868,32.39999721,246.09,245.98,32.39999721]
[1737219757167,32.46299721,246.13,246.06,20.0]
[1737219757369,0.063,246.13,246.1,20.0]
[1737219757558,0.063,246.13,246.12,56.17688121]
[1737219757870,0.063,246.13,246.12,32.39999721]
[1737219758056,0.063,246.17,246.15,20.0]
[1737219758261,32.39999721,246.38,246.23,20.0]
[1737219758463,32.39999721,246.38,246.2,23.776884]
[1737219758464,32.39999721,246.4,246.34,20.0]
[1737219759192,16.233905,246.62,246.25,23.776884]
[1737219759193,0.60943219,246.53,246.46,20.0]
[1737219759349,0.60943219,246.74,246.55,20.0]
[1737219759554,32.39999721,246.74,246.68,20.0]
[1737219759754,32.39999721,246.7,246.59,32.39999721]
[1737219759960,32.39999721,246.66,246.55,32.39999721]
[1737219760156,0.60943219,246.65,246.41,0.60824256]
[1737219760346,24.31267583,246.92,246.42,0.60822891]
[1737219760559,32.39999721,246.71,246.61,32.39999721]
[1737219760760,32.39999721,246.65,246.54,32.39999721]
[1737219760969,32.39999721,246.69,246.59,32.39999721]
[1737219761274,32.39999721,246.78,246.67,52.43372955]
[1737219761458,12.67925129,246.76,246.66,20.35652848]
[1737219761646,32.39999721,246.74,246.67,20.0]
[1737219761847,32.39999721,246.77,246.67,52.39999721]
[1737219762052,4.24671765,246.73,246.68,5.40921227]
[1737219762267,22.0773,246.95,246.72,32.39999721]
[1737219762579,32.39999721,246.81,246.69,32.39999721]
[1737219762754,32.39999721,246.78,246.66,32.39999721]
[1737219763073,4.05,246.92,246.6,1.60162312]
[1737219763074,4.05,246.92,246.69,32.39999721]
[1737219763252,32.39999721,246.81,246.69,32.39999721]
[1737219763453,32.39999721,246.79,246.72,20.0]
[1737219763656,32.39999721,246.76,246.72,20.0]
[1737219763863,32.14401678,246.77,246.66,32.75208397]
[1737219764157,32.14401678,246.75,246.64,32.14401678]
[1737219764352,32.14401678,246.75,246.67,20.0]
[1737219764558,32.14401678,246.77,246.68,0.60814525]
[1737219764769,5.66594942,246.76,246.56,2.62422418]
[1737219764954,5.66594942,246.76,246.75,32.14401678]
[1737219765154,2.48318033,246.75,246.71,32.14401678]
[1737219765375,2.48318033,246.75,246.69,32.14401678]
[1737219765569,23.776884,246.74,246.65,32.14401678]
[1737219765763,55.92090078,246.74,246.63,32.14401678]
[1737219766076,32.14401678,246.74,246.65,32.14401678]
[1737219766267,32.14401678,246.72,246.61,32.14401678]
[1737219766575,32.14401678,246.74,246.64,32.14401678]
[1737219766763,32.14401678,246.77,246.65,32.14401678]
[1737219767075,5.9089,246.94,246.76,32.14401678]
[1737219767479,32.14401678,246.89,246.8,32.14401678]
[1737219767686,32.14401678,246.97,246.89,20.0]
[1737219767860,12.0523,247.03,246.89,20.0]
[1737219768062,32.14401678,246.93,246.89,20.0]
[1737219768260,32.14401678,246.93,246.86,20.0]
[1737219768465,32.14401678,246.91,246.55,12.9276216]
[1737219768666,44.19631678,247.03,246.93,20.0]
[1737219768963,32.14401678,247.08,246.97,32.14401678]
[1737219769173,12.0523,247.11,246.97,32.14401678]
[1737219769477,0.063,246.93,246.86,2.06624253]
[1737219769664,0.063,246.93,246.79,3.29801236]
[1737219769865,0.063,246.93,246.8,0.60765835]
[1737219770077,12.3808,247.05,246.85,20.0]
[1737219770267,12.3808,247.05,246.99,20.0]
[1737219770462,12.3808,247.05,246.94,32.14401678]
[1737219770670,44.52481678,247.05,246.94,32.14401678]
[1737219770881,44.52481678,247.05,246.97,20.0]
[1737219771268,23.776884,247.0,246.76,0.60736907]
[1737219771481,32.14401678,246.91,246.8,32.14401678]
[1737219771663,32.14401678,246.93,246.82,32.14401678]
[1737219771857,32.14401678,246.95,246.85,32.14401678]
[1737219772057,32.14401678,246.93,246.81,32.14401678]
[1737219772380,32.14401678,246.95,246.85,32.14401678]
[1737219772678,4.048,247.03,246.83,32.14401678]
[1737219772886,32.14401678,247.05,246.94,32.14401678]
[1737219773055,32.14401678,246.99,246.88,32.14401678]
[1737219773476,4.0459,247.16,246.88,32.14401678]
[1737219773684,32.14401678,247.0,246.88,32.14401678]
[1737219773982,32.14401678,247.0,246.93,20.0]
[1737219774156,32.14401678,247.08,247.01,20.0]
[1737219774360,32.14401678,247.1,247.03,20.0]
[1737219774569,32.14401678,247.1,246.76,2.65840787]
[1737219774570,32.14401678,247.14,247.05,20.0]
[1737219775077,5.9089,247.18,247.13,20.0]
[1737219775284,5.9089,247.18,247.03,0.60723625]
[1737219775285,32.14401678,247.14,247.03,32.14401678]
[1737219775497,32.14401678,247.11,246.99,32.14401678]
[1737219775785,5.9089,247.18,247.02,20.0]
[1737219775981,32.14401678,247.1,247.04,20.0]
[1737219776283,32.14401678,247.1,246.99,32.14401678]
[1737219776284,38.11591678,247.18,247.07,32.14401678]
[1737219776486,32.14401678,247.11,247.01,32.14401678]
[1737219776685,32.14401678,247.15,247.05,32.14401678]
[1737219776884,32.14401678,247.15,247.08,20.0]
[1737219777072,32.14401678,247.11,246.99,32.14401678]
[1737219777278,23.776884,247.17,246.99,32.14401678]
[1737219777471,23.776884,247.07,246.97,32.14401678]
[1737219777670,32.14401678,246.99,246.89,32.14401678]
[1737219777981,32.14401678,246.9,246.78,32.14401678]
[1737219778284,38.09831678,246.93,246.84,32.14401678]
[1737219778479,23.776884,246.92,246.82,32.14401678]
[1737219779389,5.9543,246.93,246.82,32.14401678]
[1737219779597,18.3351,247.11,246.94,20.0]
[1737219779904,32.14401678,247.05,246.96,32.14401678]
[1737219780063,0.063,247.18,247.04,32.14401678]
[1737219780264,0.063,247.18,247.09,32.14401678]
[1737219780487,32.14401678,247.12,246.97,0.60706203]
[1737219780790,32.14401678,247.12,246.47,43.74]
[1737219780791,32.14401678,247.04,246.94,32.14401678]
[1737219780992,23.776884,247.01,246.92,32.14401678]
[1737219781368,32.14401678,247.02,246.92,32.14401678]
[1737219781568,32.14401678,247.04,246.92,32.14401678]
[1737219781776,32.14401678,247.02,246.92,32.14401678]
[1737219782091,32.14401678,247.04,246.94,32.14401678]
[1737219782485,32.14401678,247.1,247.0,32.14401678]
[1737219782676,10.1089,247.31,247.08,32.14401678]
[1737219782880,32.14401678,247.17,247.06,32.14401678]
[1737219783080,4.0427,247.36,247.16,32.14401678]
[1737219783287,2.02642897,247.39,247.16,32.14401678]
[1737219783605,4.04,247.53,247.19,20.0]
[1737219783775,281.3381,247.67,247.2,0.60651258]
[1737219783970,4.0384,247.63,247.32,20.0]
[1737219784167,62.1381,247.67,247.33,0.60624438]
[1737219784380,62.1381,247.67,247.41,32.14401678]
[1737219784381,32.14401678,247.52,247.41,32.14401678]
[1737219784585,32.14401678,247.52,247.39,32.14401678]
[1737219784792,32.14401678,247.47,247.23,0.60616714]
[1737219784980,32.14401678,247.35,247.23,32.14401678]
[1737219785182,32.14401678,247.37,247.25,32.14401678]
[1737219785392,32.14401678,247.39,247.27,32.14401678]
[1737219785577,51.45621678,247.4,247.27,32.14401678]
[1737219785779,51.45621678,247.4,247.09,0.60674543]
[1737219785780,32.14401678,247.38,247.25,32.14401678]
[1737219786096,0.063,247.42,247.37,32.14401678]
[1737219786300,10.0914,247.74,247.41,32.14401678]
[1737219786499,32.14401678,247.55,247.43,32.14401678]
[1737219786801,32.14401678,247.61,247.49,32.14401678]
[1737219786976,32.14401678,247.63,247.51,32.14401678]
[1737219787181,19.3122,247.51,246.78,20.48624266]
[1737219787494,19.3122,247.51,246.77,12.3149]
[1737219787495,32.14401678,247.32,247.2,32.14401678]
[1737219787693,12.32,247.44,246.97,0.6068161]
[1737219787898,32.14401678,247.37,247.23,32.14401678]
[1737219788078,32.14401678,247.43,247.3,32.14401678]
[1737219788473,32.14401678,247.39,247.26,32.14401678]
[1737219788880,23.3524,247.51,247.22,32.14401678]
[1737219788881,32.14401678,247.35,247.22,32.14401678]
[1737219789208,32.14401678,247.35,247.05,12.3149]
[1737219789209,20.2444,247.76,247.33,32.14401678]
[1737219789386,32.14401678,247.52,247.4,32.14401678]
[1737219789600,32.14401678,247.48,247.43,20.0]
[1737219790177,32.14401678,247.46,247.39,20.0]
[1737219790482,32.14401678,247.4,247.18,0.60632963]
[1737219790797,23.776884,247.32,247.21,32.14401678]
[1737219791298,12.32,247.44,247.06,0.60670397]
[1737219791299,23.776884,247.3,247.19,32.14401678]
[1737219791477,23.776884,247.3,247.21,32.14401678]
[1737219791682,32.14401678,247.33,247.21,32.14401678]
[1737219791883,32.14401678,247.27,247.15,32.14401678]
[1737219792097,32.14401678,247.16,247.05,32.14401678]
[1737219792300,16.3618,247.41,247.14,32.14401678]
[1737219792482,12.32,247.38,247.18,32.14401678]
[1737219792812,4.0418,247.41,247.22,32.14401678]
[1737219793109,20.93342192,247.5,247.2,32.14401678]
[1737219793110,32.14401678,247.31,247.2,32.14401678]
[1737219793310,32.14401678,247.33,247.25,20.0]
[1737219793603,32.14401678,247.28,247.16,32.14401678]
[1737219793810,32.14401678,247.3,247.18,32.14401678]
[1737219793987,32.14401678,247.26,247.15,32.14401678]
[1737219794184,32.14401678,247.24,247.13,32.14401678]
[1737219794388,32.14401678,247.14,247.03,32.14401678]
[1737219794590,16.186789,247.28,247.13,32.14401678]
[1737219794792,32.14401678,247.35,247.22,32.14401678]
[1737219795104,32.14401678,247.35,247.14,0.6068799]
[1737219795105,32.14401678,247.25,247.15,32.14401678]
[1737219795298,32.14401678,247.25,247.02,3.12058136]
[1737219795299,32.14401678,247.23,247.11,32.14401678]
[1737219795684,32.14401678,247.38,247.03,32.14401678]
[1737219795685,32.14401678,247.15,247.03,32.14401678]
[1737219796000,20.0121,247.27,247.07,32.14401678]
[1737219796203,32.14401678,247.16,247.05,32.14401678]
[1737219796712,32.14401678,247.2,247.09,32.14401678]
[1737219796886,32.14401678,247.2,247.07,27.14401678]
[1737219797214,15.81663877,247.39,247.19,32.14401678]
[1737219797511,32.14401678,247.34,247.25,20.0]
[1737219797705,32.14401678,247.28,247.16,32.14401678]
[1737219797890,32.14401678,247.28,247.19,20.0]
[1737219798089,32.14401678,247.26,247.19,20.0]
[1737219798505,32.14401678,247.3,247.18,32.14401678]
[1737219798816,23.776884,247.29,247.18,32.14401678]
[1737219798986,32.14401678,247.28,247.18,32.14401678]
[1737219799188,32.14401678,247.36,247.26,32.14401678]
[1737219799507,22.52809249,247.37,247.28,32.14401678]
[1737219799708,32.14401678,247.43,247.32,32.14401678]
[1737219799911,32.14401678,247.45,247.34,32.14401678]
[1737219800206,13.2972,247.48,247.21,0.60653401]
[1737219800207,32.14401678,247.47,247.36,32.14401678]
[1737219800599,32.14401678,247.41,247.3,32.14401678]
[1737219801111,32.14401678,247.36,247.26,32.14401678]
[1737219801492,32.14401678,247.38,247.28,32.14401678]
[1737219801685,32.14401678,247.32,247.22,32.14401678]
[1737219801885,32.14401678,247.26,247.16,32.14401678]
[1737219802207,32.14401678,247.22,247.02,3.20113825]
[1737219802401,20.0121,247.24,247.05,32.14401678]
[1737219802605,32.14401678,247.2,247.1,32.14401678]
[1737219802990,32.14401678,247.12,247.02,0.03]
[1737219803185,32.14401678,247.04,247.02,0.03]
[1737219803494,23.776884,247.03,246.85,32.14401678]
[1737219803704,32.14401678,246.9,246.79,32.14401678]
[1737219804010,12.46396849,246.8,246.77,0.03]
[1737219804233,23.776884,246.82,246.77,0.03]
[1737219804417,32.14401678,246.77,246.58,32.14401678]
[1737219804604,12.15,246.83,246.66,16.206345]
[1737219804801,12.15,246.83,246.53,32.14401678]
[1737219804802,32.14401678,246.67,246.53,32.14401678]
[1737219805112,32.14401678,246.56,246.51,0.03]
[1737219805290,12.15,246.66,246.25,0.60869495]
[1737219805490,32.14401678,246.54,246.44,32.14401678]
[1737219805697,32.14401678,246.52,246.26,3.66862612]
[1737219806019,5.65389076,246.56,246.27,0.60870949]
[1737219806202,0.60870949,246.55,246.53,32.14401678]
[1737219806403,0.60870949,246.55,246.21,0.60850391]
[1737219806608,32.14401678,246.46,246.36,32.14401678]
[1737219806801,0.60870949,246.45,246.21,0.60850391]
[1737219806992,32.14401678,246.46,246.2,0.60867222]
[1737219807314,0.60870949,246.45,246.11,0.2438]
[1737219807485,0.60870949,246.55,246.12,0.60921825]
[1737219808214,32.14401678,246.45,246.34,32.14401678]
[1737219808416,0.60870949,246.44,246.35,32.14401678]
[1737219808817,32.14401678,246.37,246.14,0.60895049]
[1737219809021,0.60870949,246.36,246.11,0.2438]
[1737219809193,0.60870949,246.54,246.15,0.60927299]
[1737219809519,0.60870949,246.54,246.16,23.1143846]
[1737219809694,23.776884,246.53,246.17,0.6088362]
[1737219809894,23.776884,246.51,246.17,0.6088362]
[1737219810212,32.14401678,246.39,246.17,0.6088362]
[1737219810512,32.14401678,246.37,246.25,32.14401678]
[1737219810694,0.60870949,246.36,246.25,32.14401678]
[1737219810890,32.14401678,246.34,246.23,32.14401678]
[1737219811092,0.60870949,246.33,246.25,32.14401678]
[1737219811299,0.60870949,246.35,246.3,20.0]
[1737219811603,32.14401678,246.34,246.22,32.14401678]
[1737219811797,0.60870949,246.33,246.3,32.14401678]
[1737219811994,0.60870949,246.39,246.3,32.14401678]
[1737219812305,0.60870949,246.39,246.33,52.14401678]
[1737219812505,4.76132106,246.5,246.33,52.14401678]
[1737219812506,32.14401678,246.44,246.33,32.14401678]
[1737219812708,0.60870949,246.43,246.36,20.0]
[1737219812916,23.776884,246.41,246.36,20.0]
[1737219813114,32.14401678,246.38,246.28,32.14401678]
[1737219813413,32.14401678,246.35,246.25,32.14401678]
[1737219813591,0.60870949,246.34,246.32,20.0]
[1737219813793,0.60870949,246.4,209.88,0.3]
[1737219813992,39.7837,245.97,245.92,0.02436349]
[1737219814189,0.7612179,246.45,246.19,3.3002]
[1737219814392,23.7042,246.56,246.19,3.3002]
[1737219814704,16.232544,246.52,246.19,3.3002]
[1737219815005,16.232544,246.52,246.2,23.776884]
[1737219815216,32.22392859,246.45,246.34,32.22392859]
[1737219815716,32.22392859,246.47,246.36,32.22392859]
[1737219815898,32.22392859,246.53,246.45,19.5]
[1737219816222,32.22392859,246.51,246.45,19.5]
[1737219816519,32.22392859,246.49,246.39,12.24787399]
[1737219816819,0.76096565,246.48,246.25,2.58534167]
[1737219817012,32.22392859,246.47,246.36,32.22392859]
[1737219817210,32.98243406,246.46,246.35,32.2214232]
[1737219817394,32.2214232,246.44,246.33,32.2214232]
[1737219817593,32.2214232,246.42,246.31,32.2214232]
[1737219817795,0.76115877,246.41,246.31,32.2214232]
[1737219818017,32.2214232,246.4,246.29,32.2214232]
[1737219818211,0.76116006,246.39,246.31,32.2214232]
[1737219818411,32.2214232,246.47,246.36,52.2214232]
[1737219818621,32.2214232,246.43,246.39,20.0]
[1737219818921,32.2214232,246.47,246.39,20.0]
[1737219819108,0.76089078,246.46,246.39,20.0]
[1737219819308,0.76089078,246.46,246.39,19.5]
[1737219819504,0.76089078,246.46,246.29,2.54735606]
[1737219819697,0.7611589,246.53,246.3,32.2214232]
[1737219819893,0.063,246.46,246.32,32.2214232]
[1737219820098,32.2214232,246.44,246.34,32.2214232]
[1737219820314,32.2844232,246.46,246.36,32.2214232]
[1737219820513,0.76091187,246.45,246.36,32.2214232]
[1737219820719,32.2214232,246.44,246.34,32.2214232]
[1737219821024,0.76107622,246.43,246.19,3.3002]
[1737219821198,0.82420643,246.46,246.19,35.5216232]
[1737219821401,32.2214232,246.23,245.91,32.2214232]
[1737219821602,44.5615477,246.22,246.12,32.2214232]
[1737219821795,44.5615477,246.22,246.17,32.2214232]
[1737219822101,43.8,246.22,246.07,4.14225945]
[1737219822298,43.8,246.22,246.17,20.0]
[1737219822621,27.88132142,246.22,246.21,43.776884]
[1737219823003,26.35832142,246.22,246.21,76.02789535]
[1737219823204,21.85832142,246.22,246.21,76.02789535]
[1737219823398,21.85832142,246.22,246.21,32.25101135]
[1737219823617,21.85832142,246.22,245.71,20.11971581]
[1737219823819,32.25101135,246.2,246.1,32.25101135]
[1737219824127,0.76189453,246.19,246.16,32.25101135]
[1737219824300,0.76170484,246.25,246.21,20.0]
[1737219824628,43.82,246.24,246.21,20.0]
[1737219824825,20.0,246.21,246.02,0.03]
[1737219825004,32.25101135,246.09,246.0,15.777204]
[1737219825197,32.25101135,246.09,245.96,32.25101135]
[1737219825198,0.76221987,246.08,246.04,32.25101135]
[1737219825407,0.76201808,246.14,246.06,32.25101135]
[1737219825598,0.76189848,246.21,246.13,32.25101135]
[1737219825800,0.76189848,246.21,245.91,32.25101135]
[1737219825801,43.82,246.22,246.2,32.25101135]
[1737219826000,43.82,246.22,246.06,2.51038943]
[1737219826001,0.76158904,246.21,246.06,2.51038943]
[1737219826603,0.76158904,246.21,245.92,16.251405]
[1737219826912,0.76158904,246.21,245.92,23.00103923]
[1737219827229,32.25101135,246.15,246.03,32.25101135]
[1737219827428,0.76201119,246.14,246.07,32.25101135]
[1737219827605,32.25101135,246.16,246.05,32.25101135]
[1737219827807,47.8814,246.22,246.01,32.31522978]
[1737219827808,32.31522978,246.12,246.01,32.31522978]
[1737219828105,0.76215787,246.11,246.03,32.31522978]
[1737219828304,0.76208406,246.13,246.06,20.0]
[1737219828503,0.76208406,246.13,246.06,19.5]
[1737219828805,0.76208406,246.13,246.03,32.31522978]
[1737219829012,0.76199254,246.15,246.09,32.31522978]
[1737219829308,0.76189753,246.19,246.07,32.31522978]
[1737219829510,32.31522978,246.14,246.05,32.31522978]
[1737219829708,0.76197546,246.13,246.09,32.31522978]
[1737219829930,0.76197546,246.19,246.11,32.31522978]
[1737219830130,20.89890728,246.45,245.91,32.31522978]
[1737219830131,0.76166735,246.28,246.17,32.31522978]
[1737219830315,0.76166735,246.28,246.21,32.31522978]
[1737219830711,32.31522978,246.26,246.15,32.31522978]
[1737219830905,53.9865,246.39,246.11,32.31522978]
[1737219830906,32.31522978,246.22,246.11,32.31522978]
[1737219831409,32.31522978,246.2,246.09,32.31522978]
[1737219831610,0.76188674,246.19,246.11,32.31522978]
[1737219831916,0.76183094,246.21,246.14,20.0]
[1737219832918,0.76183094,246.21,246.16,20.0]
[1737219833730,0.76183094,246.21,246.11,32.31522978]
[1737219834032,0.76183094,246.21,246.0,0.03]
[1737219834033,32.31522978,246.16,246.06,32.31522978]
[1737219834204,0.76197755,246.15,246.1,32.31522978]